Cogmind - Beta 13 @@@ ROGUE MODE // 2024.04.07 @ 23:41:45 Player: chexo4 Result: Destroyed by G-34 Mercenary with Small Laser Performance ------------- Evolutions (0) 0 Regions Visited (1) 200 Robots Destroyed (20) 100 Value Destroyed (248) 248 Prototype IDs (0) 0 Alien Tech Used (0) 0 Bonus (0) 0 TOTAL SCORE: 548 Bonus ------- None Cogmind --------- Core Integrity 0/250 Matter 300/300 Energy 99/100 System Corruption 0% Temperature Cool (71) Movement Core (150) Ox2 Location -10/Materials Parts ------- > --- POWER (1) -------- (None) > --- PROPULSION (2) --- (None) > --- UTILITY (2) ------ Small Storage Unit Improved Terrain Scanner > --- WEAPON (2) ------- Assault Rifle > --- INVENTORY (8) ---- Light Ion Engine Light Ion Engine Wheel Compact Wheel Improved Terrain Scanner Improved Terrain Scanner Small Laser Mining Laser Peak State ------------ > --- POWER ------------ Light Ion Engine > --- PROPULSION ------- Compact Wheel Compact Wheel > --- UTILITY ---------- Small Storage Unit Improved Terrain Scanner > --- WEAPON ----------- Small Laser Small Laser > --- INVENTORY -------- Light Ion Engine Light Ion Engine Wheel Wheel Compact Wheel Improved Terrain Scanner Assault Rifle Mining Laser [Rating: 10] Favorites ----------- Power Light Ion Engine Engine Light Ion Engine Propulsion Compact Wheel Wheel Compact Wheel Utility Small Storage Unit Device Improved Terrain Scanner Storage Small Storage Unit Weapon Small Laser Energy Gun Small Laser Energy Cannon Beam Cannon Ballistic Gun Assault Rifle Build | -11 -10 ------- Run | Yrd Mat Slots Evolved . | . . Power . | . . Propulsion . | . . Utility . | . . Weapon . | . . Parts Attached 9 | 7 2 Power 1 | 1 . Engine 1 | 1 . Core . | . . Reactor . | . . Propulsion 2 | 2 . Treads . | . . Leg . | . . Wheel 2 | 2 . Hover . | . . Flight . | . . Utility 2 | 2 . Device 1 | 1 . Storage 1 | 1 . Processor . | . . Hackware . | . . Protection . | . . Artifact . | . . Weapon 4 | 2 2 Energy Gun 2 | 2 . Energy Cannon 1 | . 1 Ballistic Gun 1 | . 1 Ballistic Cannon . | . . Launcher . | . . Special Weapon . | . . Impact Weapon . | . . Slashing Weapon . | . . Piercing Weapon . | . . Special Melee Weapon . | . . Unidentified Prototypes . | . . Parts Lost 4 | . 4 Power 1 | . 1 Propulsion 2 | . 2 Utility . | . . Weapon 1 | . 1 Highest Loss Streak 4 | . 4 To Critical Strikes . | . . Average Slot Usage (%) 97 | . 97 Engine 12 | . 12 Wheel 26 | . 26 Device 14 | . 14 Storage 14 | . 14 Energy Gun 8 | . 8 Energy Cannon 10 | . 10 Ballistic Gun 9 | . 9 Naked Turns . | . . Heaviest Build 14 | 11 14 Greatest Support 32 | 32 32 Greatest Overweight (x) . | . . Average Overweight (x) . | . . Largest Inventory Capacity 8 | 8 8 Average Capacity 7 | 7 8 Most Carried 8 | 8 8 Average Carried 6 | 5 8 Final Capacity 8 | 8 8 Final Carried 8 | 8 8 Class Distribution -------------------- 100% | Mutant Dominant Class ---------------- Mutant | -10/Materials Resources | -11 -10 ----------- Run | Yrd Mat Matter Collected 323 | 270 53 Remotely . | . . Salvage Created 544 | 343 201 Parts 39 | 30 9 Haulers Intercepted . | . . Recyclers Shooed . | . . Parts Field Recycled . | . . Retrieved Matter . | . . Parts Self-Destructed . | . . Prevented . | . . Kills | -11 -10 ------- Run | Yrd Mat Combat Hostiles Destroyed 5 | . 5 Guns 3 | . 3 Cannons 2 | . 2 Classes Destroyed 6 | 3 3 Worker 4 | 4 . Tunneler 9 | 9 . Recycler 1 | 1 . Operator 1 | . 1 Swarmer 1 | . 1 Grunt 4 | . 4 Best Kill Streak 3 | 3 3 Combat Bots Only 3 | . 3 Max Kills in Single Turn 1 | 1 1 Gunslinging . | . . Exploded . | . . Melee . | . . Uniques/NPCs Destroyed . | . . Combat | -11 -10 -------- Run | Yrd Mat Hostile Shots Fired 68 | . 68 Missed 14 | . 14 Damage Taken 613 | . 613 Core 257 | . 257 Absorbed by Shields . | . . Core Remaining (%) 100 | 100 . Volleys Fired 41 | 28 13 Largest 2 | 2 2 Hottest 80 | 80 80 Shots Fired 82 | 56 26 Gun 70 | 56 14 Cannon 12 | . 12 Launcher . | . . Special . | . . Kinetic 12 | . 12 Thermal 70 | 56 14 Explosive . | . . Electromagnetic . | . . Robot Hit Streak 15 | 6 15 Robot Miss Streak 3 | 3 2 Penetration Max . | . . Secondary Targets . | . . Shots Hit Robots 52 | 31 21 Core Hits 24 | 15 9 Critical Kills . | . . Critical Parts Destroyed . | . . Critical Strikes . | . . Melee Attacks . | . . Impact . | . . Slashing . | . . Piercing . | . . Sneak Attacks . | . . Combat Hostiles . | . . Follow-up Attacks . | . . Damage Inflicted 659 | 340 319 Guns 482 | 340 142 Cannons 177 | . 177 Explosions . | . . Melee . | . . Ramming . | . . Kinetic 120 | . 120 Thermal 539 | 340 199 Explosive . | . . Electromagnetic . | . . Impact . | . . Slashing . | . . Piercing . | . . Highest Corruption . | . . Average Corruption . | . . Corruption Purged . | . . Corruption Blocked . | . . Overload Shots . | . . Overflow Damage . | . . Projectiles . | . . Explosions . | . . Melee . | . . Knockbacks . | . . Impact . | . . Kinetic . | . . Secondary . | . . Self-Inflicted Damage . | . . Shots . | . . Rammed . | . . Targets Rammed . | . . Kicked . | . . Crushed . | . . Highest Temperature 280 | 72 280 Average Temperature 54 | 17 114 Received Heat Transfer 306 | . 306 Siege Activations . | . . Robots Corrupted . | . . Combat Hostiles . | . . Parts Fried . | . . Impact Corruptions . | . . Robots Melted . | . . Combat Hostiles . | . . Parts Melted 1 | . 1 Heat Transferred 1195 | 775 420 Parts Sabotaged . | . . Parts Stolen . | . . Parts Stripped . | . . Power Chain Reactions . | . . Alert | -11 -10 ------- Run | Yrd Mat Peak Influence 132 | 60 132 Initial 6 | . 6 Average 33 | 24 56 Maximum Alert Level . | . . Low Security (%) 100 | 100 100 Level 1 . | . . Level 2 . | . . Level 3 . | . . Level 4 . | . . Level 5 . | . . High Security . | . . Max Security . | . . Squads Dispatched 3 | . 3 Investigation 1 | . 1 Extermination . | . . Reinforcement 2 | . 2 Assault . | . . Garrison . | . . Intercept . | . . Searches Triggered . | . . Construction Impeded . | . . Haulers Reinforced . | . . Active Scanning Responses . | . . Cargo Convoy Interrupts . | . . Stealth | -11 -10 --------- Run | Yrd Mat Distress Signals 1 | . 1 Communications Jammed . | . . Distress Signals . | . . Times Spotted 16 | . 16 Peak Tracking Total 9 | . 9 Tactical Retreats . | . . Traps | -11 -10 ------- Run | Yrd Mat Traps Triggered 1 | . 1 Indirectly . | . . Trap Hack Attempts . | . . Triggered . | . . Disarmed . | . . Reprogrammed . | . . Reused . | . . Traps Extracted . | . . Installed . | . . Triggered . | . . Machines | -11 -10 ---------- Run | Yrd Mat Machines Disabled . | . . Max in Single Turn . | . . Machines Repaired . | . . Machines Dismantled . | . . Machines Sabotaged . | . . Overloaded Fab Kills . | . . Hacking | -11 -10 --------- Run | Yrd Mat Machines Accessed 1 | . 1 Terminals 1 | . 1 Fabricators . | . . Repair Stations . | . . Recycling Units . | . . Scanalyzers . | . . Garrison Access . | . . Total Hacks 3 | . 3 Successful 1 | . 1 Failed 2 | . 2 Catastrophic . | . . Database Lockouts . | . . Manual 3 | . 3 Terminals 3 | . 3 Fabricators . | . . Repair Stations . | . . Recycling Units . | . . Scanalyzers . | . . Garrison Access . | . . Terminal Hacks 1 | . 1 Terminal Index 1 | . 1 Fabricator Hacks . | . . Repair Station Hacks . | . . Recycling Unit Hacks . | . . Scanalyzer . | . . Garrison Access Hacks . | . . Unauthorized Hacks . | . . Terminals . | . . Fabricators . | . . Repair Stations . | . . Recycling Units . | . . Scanalyzers . | . . Garrison Access . | . . Data Cores Recovered . | . . Used . | . . Hacking Detections 1 | . 1 Full Trace Events 1 | . 1 Feedback Events . | . . Feedback Blocked . | . . Robot Schematics Acquired . | . . Robots Built . | . . Authchips . | . . Time . | . . Total Robot Build Rating . | . . Part Schematics Acquired . | . . Parts Built . | . . Authchips . | . . Time . | . . Total Part Build Rating . | . . Parts Repaired . | . . Time . | . . Parts Recycled . | . . Recycled Matter . | . . Retrieved Matter . | . . Retrieved Components . | . . Parts Scanalyzed . | . . Part Schematics Acquired . | . . Parts Damaged . | . . Bothacking | -11 -10 ------------ Run | Yrd Mat Used RIF Installer . | . . Robots Hacked . | . . Non-combat . | . . Combat . | . . Robot Hacks Applied . | . . Relay Couplers Released . | . . Fabnet Peak Effective % . | . . Robots Rewired . | . . Allies Hacked . | . . Hacks Repelled . | . . Allies | -11 -10 -------- Run | Yrd Mat Total Allies . | . . Largest Group . | . . Highest-Rated Group . | . . Highest-Rated Ally . | . . Total Orders . | . . Ally Attacks . | . . Total Damage . | . . Kills . | . . Allies Corrupted . | . . Allies Melted . | . . Intel | -11 -10 ------- Run | Yrd Mat Robot Analysis Total . | . . Derelict Logs Recovered . | . . Drone Launches . | . . Drone Recoveries . | . . Exploration | -11 -10 ------------- Run | Yrd Mat Turns Passed 763 | 553 210 Spaces Moved 601 | 449 152 Core 4 | 4 . Treads . | . . Legs . | . . Wheels 597 | 445 152 Hover . | . . Flight . | . . Fastest Speed 50 | 50 100 Average Speed 99 | 99 100 Slowest Speed 100 | 100 100 Overloaded Moves . | . . Propulsion Burnouts . | . . Robots Hopped . | . . Cave-ins Triggered . | . . Exploration Rate (%) 18 | 8 28 Regions Visited 1 Branch Regions . Pre-discovered Areas . | . . Known Exits Taken . | . . Unknown Exits Taken 1 | 1 . Scrap Searched . | . . Spaces Dug . | . . Terrain Destroyed . | . . Melee . | . . Projectile . | . . AOE . | . . Terrain Rammed . | . . Walls Destroyed . | . . Machines Disabled . | . . Actions | -11 -10 --------- Run | Yrd Mat Total 683 | 499 184 Wait 16 | . 16 Move 600 | 448 152 Hop . | . . Pick Up 15 | 15 . Fast Attach 2 | 1 1 Attach 6 | 6 . Detach . | . . Swap 1 | . 1 Drop 2 | 1 1 Fire 41 | 28 13 Melee . | . . Ram . | . . Kick . | . . Crush . | . . Escape Stasis . | . . Rewire . | . . Trap . | . . Miscellaneous . | . . Route ------- -11/Scrapyard -10/Materials (discovered 1 exit: [*Min]) History --------- Turn | Location | Event 9 | -11/Scrapyard | Discovered new exit (range 15) 554 | -11/Scrapyard | Entered Materials 555 | -10/Materials | Build established: Mutant 744 | -10/Materials | Core integrity fell below 50% 750 | -10/Materials | Discovered new exit (range 11) 754 | -10/Materials | Core integrity fell below 20% 764 | -10/Materials | Destroyed by G-34 Mercenary with Small Laser Last Messages --------------- G-34 Mercenary destroyed. K-01 Serf destroyed. Acquired 3 matter. U-05 Engineer lays Concrete. Lgt. Ion Engine destroyed. Com. Wheel destroyed. W-16 Scout sends out distress signal. EXIT=FOUND S-10 Pest destroyed. Triggered Explosive Trap. An explosion rips through the floor. U-05 Engineer destroyed. Terminal disabled. S-10 Pest destroyed. U-05 Engineer lays Concrete. U-05 Engineer builds a Wall. U-05 Engineer lays Concrete. Beam Cannon destroyed. Com. Wheel destroyed. U-05 Engineer lays Concrete. Map ----- +----------------------------------------------------+ | ??????????????????????????????????????????????#??# | | ??????????????????????????????????????????######## | | ??????????????????????????????????????????# """ # | | ??????????????????????????????????????????# """ # | | ??????????????????????????????????????????# """ + | | ???????????????????????????????????????#??# # | | ?????????????????????????????????????????## # | | ??????????????????????????????????????????# # | | ??????????????????????????????????? ??????######## | | ??????????????????????????????????????????# """ # | | ?????????????????????????? ????????????## """!# | | ?????????????????????????# ##????#??????# """=+ | | ???????????????????????""" #????#?#????# # | | ???????????????????????? #????#??????# [# | | ????????????????????? ??! #???????????# # | | ???????????????????????"" < #??????#????######## | | ????????????????????????! #??????#?????#?????# | | ????????????????????? ?? #???????#??###?????# | | ?????????????????????????" ????#??????????????# | | ?????????????????????????# #????#????#??#????#?# | | ?????????????????????????# #????????#???????#??# | | ?????????????????????????# #??????????????#????# | | ?????????????????#???##### #???#???#?????#?#???# | | ???????????????????#### *= ##?????????#????????# | | ???????????#???????# u !%==%o ##############???#?# | | ???????????????????# ^ =!@== [%g w ####### | | ???????????????# u !% =%*=g | | ???????????????### # * =%=% g T | | ???????????????????# ######## | | ????????????????#?## #????#?# ####### | | ????????????#??????# #??????## ##?##??? | | ??????????????????## ^!^ #???????# #??????? | | ???????????????????#^ ^!! #???????# #??????? | | ??????????????????# !!! ##????"?# #??????? | | ??????????????????# !! g#???????# #??????? | | ??????????????????# g ???????# #?#????? | | ??????????????????# ###??????# #??????? | | ??????????????????# """ #??? ????# #??????? | | ??????????????????# """ #????????# #??????? | | ??????????????????? ??" #????????# #??#???? | | ????????????????????? ??? ???? ???? ??????? | | ?????????????????????????????????????? ??????? | | ?????????????????????????????????????? ??????? | | ??????????????????????????????????????#####??????? | | ?????????????????????????????????????????????????? | | ?????????????????????????????????????????????????? | | ?????????????????????????????????????????????????? | | ?????????????????????????????????????????????????? | | ?????????????????????????????????????????????????? | | ?????????????????????????????????????????????????? | +----------------------------------------------------+ Best States ------------- Heat Dissipation 25 Energy Generation 10 Energy Capacity 125 Matter Stores 300 Matter Capacity 300 Sight Range 16 Terrain Scan Range 16 Terrain Scan Density 10 Evasion (%) 40 Item Schematics ----------------- None Robot Schematics ------------------ None Fabricated ------------ Nothing Alien Tech Used ----------------- None Achievements -------------- None Challenges ------------ None Game ------ Seed WeightRagnarokAirjet Manual? 0 Play Time 00:07:38 Cumulative 14.6 hours Start 2024.04.07 @ 23:34:39 End 2024.04.07 @ 23:41:45 Sessions 1 Manual Loads 0 Difficulty Rogue Special Mode None Game No. 38 Rogue 38 Adventurer 0 Explorer 0 Win Type - Total 0 Types 0/0/0/0/0/0/0/0/0 Lore% 15 Gallery% 25 Achievement% 20 Wizard Run 0 Options --------- Layout 1 ASCII 0 Keyboard 0 Movement Arrows Keybinds 0 Fullscreen 2 Font 24/Smallcaps Map View 50x35 Zoom Use 0% Tactical HUD 0 Map Filters NONE Filters NONE Steam 1 RUN: f2e2fc9a-d7fc-492c-b9ee-7ab9ade38df9